Cogmind - Beta 16 @@@ ROGUE MODE // 2025.11.28 @ 05:35:08 Player: H3-MLN Result: Destroyed by B-86 Titan with Railgun Performance ------------- Evolutions (6) 3000 Regions Visited (10) 2000 Robots Destroyed (119) 595 Value Destroyed (6326) 6326 Prototype IDs (43) 860 Alien Tech Used (0) 0 Bonus (7755) 7755 TOTAL SCORE: 20536 Bonus ------- High Alert Combat Kills 2543 Follower Combat Kills 2712 Network Hubs Disabled 600 Registered with UFD 300 Met Optimus in HQ 500 Built Enhanced Grunts 300 A7 Reached Mainframe 300 Met R17 at Cetus 500 Cogmind --------- Core Integrity 0/1150 Matter 265/300 Energy 91/100 System Corruption 0% Temperature Cool (9) Movement Core (50) Location -4/Upper Caves Parts ------- > --- POWER (2+1) ------ (None) > --- PROPULSION (6+1) - (None) > --- UTILITY (8+1) ---- Experimental Sensor Array System Guard Rainbow Chip > --- WEAPON (3+1) ----- Dirty Datajack (+) > --- INVENTORY (5) ---- Enhanced Scrap Shield EMDS Multitool Peak State ------------ > --- POWER ------------ Reinforced Fission Core Quantum Reactor > --- PROPULSION ------- Carbon-fiber Leg Carbon-fiber Leg Flexi-carbon Leg Flexi-carbon Leg Flexi-carbon Leg > --- UTILITY ---------- Advanced Heat Sink Large Storage Unit Matter Compressor Machine Analyzer Experimental Sensor Array Improved Weapon Cycler Centrium Medium Armor Plating > --- WEAPON ----------- Hypervelocity Coil Gun Junk Cannon > --- INVENTORY -------- Centrium Heavy Treads Rainbow Chip Advanced Variable Charge Gun Advanced Variable Charge Gun Advanced KE Penetrator Advanced KE Penetrator Grenade Launcher CPS Tube Multitool Junk Cannon Segregator Large Botcube [Rating: 103] Favorites ----------- Power Subdweller Power Source Engine Subdweller Power Source Power Core Reinforced Fission Core Reactor Quantum Reactor Propulsion Flexi-carbon Leg Leg Flexi-carbon Leg Utility Large Storage Unit Device Improved Terrain Scanner Storage Large Storage Unit Processor Machine Analyzer Hackware Improved Hacking Suite Protection Centrium Medium Armor Plating Weapon Junk Cannon Energy Gun Quantum Rifle Energy Cannon Subdweller Beam Cannon Ballistic Gun Subdweller Machine Gun Ballistic Cannon Enhanced Gauss Cannon Launcher Scatter Rocket Array Special Weapon Junk Cannon Impact Weapon Makeshift Hammer Slashing Weapon Makeshift Axe Special Melee Weapon Dirty Datajack Build | -11 -10 -10 -7 -5 -5 -5 -5 -5 -4 -4 ------- Run | Yrd Mat Sub Scr Fac Ext Cet Arc Hub Fac Upp Slots Evolved 12 | . . . . 10 . . . . 2 . Power 1 | . . . . 1 . . . . . . Propulsion 4 | . . . . 3 . . . . 1 . Utility 6 | . . . . 5 . . . . 1 . Weapon 1 | . . . . 1 . . . . . . Parts Attached 155 | 7 1 16 15 19 13 8 7 40 15 14 Power 21 | 1 . 4 4 1 2 1 . 5 2 1 Engine 14 | 1 . 4 3 . 2 . . 3 1 . Core 5 | . . . 1 1 . . . 1 1 1 Reactor 2 | . . . . . . 1 . 1 . . Propulsion 38 | 2 . 3 1 5 5 3 . 16 3 . Treads . | . . . . . . . . . . . Leg 38 | 2 . 3 1 5 5 3 . 16 3 . Wheel . | . . . . . . . . . . . Hover . | . . . . . . . . . . . Flight . | . . . . . . . . . . . Utility 45 | 2 . 1 2 9 3 3 4 13 2 6 Device 17 | 1 . . 1 5 2 1 . 5 . 2 Storage 6 | 1 . 1 . 1 1 . . 1 1 . Processor 4 | . . . . 2 . . . . . 2 Hackware 7 | . . . . . . . 3 3 1 . Protection 11 | . . . 1 1 . 2 1 4 . 2 Artifact . | . . . . . . . . . . . Weapon 51 | 2 1 8 8 4 3 1 3 6 8 7 Energy Gun 6 | 1 1 1 . . . . 2 . 1 . Energy Cannon 10 | . . 4 1 . 1 . . 2 2 . Ballistic Gun 11 | 1 . 2 . 1 . . . 1 4 2 Ballistic Cannon 4 | . . . . 1 1 . . 2 . . Launcher 3 | . . 1 . 1 . . . 1 . . Special Weapon 9 | . . . 4 1 1 1 . . 1 1 Impact Weapon 1 | . . . 1 . . . . . . . Slashing Weapon 1 | . . . 1 . . . . . . . Piercing Weapon . | . . . . . . . . . . . Special Melee Weapon 6 | . . . 1 . . . 1 . . 4 Unidentified Prototypes 11 | . . . 1 . . 1 . 5 3 1 Corrupted Parts 4 | . . . . . . . . 4 . . System Corruption 20 | . . . . . . . . 20 . . Parts Lost 65 | . . 3 . 2 2 3 . 38 17 . Power 5 | . . . . . . . . 3 2 . Propulsion 25 | . . 2 . 1 1 1 . 15 5 . Utility 18 | . . . . 1 1 1 . 10 5 . Weapon 17 | . . 1 . . . 1 . 10 5 . Highest Loss Streak 17 | . . 1 . 1 2 2 . 17 17 . To Critical Strikes 3 | . . . . . . 1 . . 2 . Average Backups 11 | 1 5 13 12 9 9 10 13 13 3 3 Power . | . 1 . . . . . . . . . Propulsion 1 | . 1 1 1 . . . . . . . Utility 3 | . 1 2 3 3 2 2 5 7 1 . Weapon 4 | . 1 6 4 3 5 5 4 3 1 1 Tool/Special . | . . . . . . . . . . . Unused Backups 93 | . 4 4 15 10 . 18 16 25 . 1 Power 7 | . . 1 . . . 1 3 2 . . Propulsion 29 | . 2 2 5 5 . 5 4 6 . . Utility 33 | . . . 9 4 . 6 5 9 . . Weapon 23 | . 2 1 1 1 . 6 4 8 . . Tool/Special 1 | . . . . . . . . . . 1 Average Slot Usage (%) 86 | . 100 99 90 78 93 89 93 83 44 24 Engine 6 | . 14 14 8 5 5 . . 3 1 . Core 3 | . . . 5 3 5 5 5 1 3 1 Reactor 1 | . . . . . . 4 5 4 . . Leg 24 | . 28 28 28 24 28 26 29 21 10 . Device 11 | . 14 14 11 15 19 15 6 6 6 5 Storage 9 | . 14 14 14 5 9 11 6 5 . . Processor 2 | . . . . 6 9 5 5 5 4 7 Hackware 3 | . . . . . . . 13 14 8 . Protection 2 | . . . 2 3 . 4 5 3 . 2 Energy Gun 2 | . 14 5 1 . . . 4 1 3 . Energy Cannon 5 | . . 11 7 . . 4 . 3 . . Ballistic Gun 4 | . 14 11 4 1 . . . 2 1 1 Special Weapon 2 | . . . 1 5 5 5 4 2 1 . Special Melee Weapon 1 | . . . 2 . . . . . . 4 Peak Build Rating 103 | 9 9 21 38 89 93 103 103 97 71 75 Average Rating 47 | 5 9 16 20 73 89 94 96 79 44 45 On Entrance 44 | . 9 9 18 37 88 92 103 97 30 4 Avg Prop Armor Cover (%) 18 | . . . . . . . 17 16 28 . Naked Turns 1 | . . . . . . . . . 1 . Heaviest Build 99 | 15 15 40 42 82 83 99 96 92 24 29 Greatest Support 95 | 20 20 40 38 88 95 95 90 93 50 3 Greatest Overweight (x) 29 | . . 1 1 1 1 1 29 5 . 9 Average Overweight (x) 1 | . . . . . . . 8 . . 1 Largest Inventory Capacity 15 | 8 8 15 15 15 15 15 15 15 5 5 Average Capacity 13 | 7 8 14 15 15 15 15 15 14 5 5 Most Carried 15 | 3 8 15 15 15 15 15 15 15 5 5 Average Carried 12 | 1 5 13 13 14 14 13 14 13 4 4 Final Capacity 15 | 8 8 15 15 15 15 15 15 5 5 5 Final Carried 15 | 2 8 15 13 15 15 15 15 5 5 5 Class Distribution -------------------- 31% | Mutant 29% | Scavenger-Mutant 20% | Scavenger-Tank 4% | Derelict-Mutant 4% | Commander-Tank 3% | Commander-Skirmisher 3% | Scavenger-Gunner Dominant Class ---------------- Mutant | -10/Materials Scavenger-Mutant | -10/Subcaves Scavenger-Mutant | -7/Scraptown Scavenger-Tank | -5/Factory Scavenger-Gunner | -5/Extension Commander-Tank | -5/Cetus Scavenger-Tank | -5/Archives Scavenger-Tank | -5/Hub_04(d) Mutant | -4/Factory Mutant | -4/Upper Caves Resources | -11 -10 -10 -7 -5 -5 -5 -5 -5 -4 -4 ----------- Run | Yrd Mat Sub Scr Fac Ext Cet Arc Hub Fac Upp Matter Collected 5019 | 294 174 666 410 801 644 125 340 1130 153 282 Remotely . | . . . . . . . . . . . Salvage Created 5265 | 129 74 593 . 764 714 452 314 1968 238 19 Parts 210 | 8 6 36 . 32 23 12 21 61 9 2 Haulers Intercepted 3 | . 1 . . . . . . 2 . . Recyclers Shooed 6 | . . . . 1 3 . . . 2 . Parts Field Recycled . | . . . . . . . . . . . Retrieved Matter . | . . . . . . . . . . . Parts Self-Destructed 17 | . . 11 . . . . . . . 6 Prevented . | . . . . . . . . . . . Parts Restored . | . . . . . . . . . . . Kills | -11 -10 -10 -7 -5 -5 -5 -5 -5 -4 -4 ------- Run | Yrd Mat Sub Scr Fac Ext Cet Arc Hub Fac Upp Combat Hostiles Destroyed 90 | . 1 14 . 15 13 7 . 37 3 . Guns 21 | . 1 7 . . 1 2 . 8 2 . Cannons 34 | . . 4 . 10 6 3 . 10 1 . AOE 18 | . . 3 . 1 3 . . 11 . . Classes Destroyed 20 | 2 2 1 . 7 1 . 1 5 . 1 Worker 2 | . . . . . . . . 2 . . Builder 1 | . . . . 1 . . . . . . Tunneler 4 | 3 . . . 1 . . . . . . Hauler 3 | . 1 . . . . . . 2 . . Recycler 4 | 1 . . . 1 1 . . 1 . . Minesweeper 1 | . . . . . . . . . . 1 Mechanic 1 | . . . . 1 . . . . . . Operator 9 | . . . . . . . 8 1 . . Watcher 4 | . . . . . 2 1 . 1 . . Swarmer 8 | . 1 . . . 5 1 . 1 . . Grunt 30 | . . . . 6 6 . . 17 1 . Brawler 1 | . . . . 1 . . . . . . Duelist 7 | . . . . 5 . . . 1 1 . Protector 3 | . . . . . . . . 3 . . Sentry 5 | . . . . 1 2 . . 2 . . Specialist 4 | . . . . . . . . 4 . . Hunter 4 | . . . . 2 . . . 1 1 . Programmer 2 | . . . . . . . . 2 . . Behemoth 1 | . . . . . . . . 1 . . Cetus Guard 6 | . . . . . . 6 . . . . Lightning 5 | . . . . . . . . 5 . . Subdweller 14 | . . 14 . . . . . . . . Best Kill Streak 14 | 4 1 3 . 3 5 4 2 14 2 1 Combat Bots Only 10 | . 1 3 . 3 5 4 . 10 2 . Max Kills in Single Turn 4 | 1 1 2 . 1 3 1 2 4 1 1 Gunslinging . | . . . . . . . . . . . Exploded 4 | . . 2 . 1 3 . . 4 . . Melee . | . . . . . . . . . . . Uniques/NPCs Destroyed . | . . . . . . . . . . . Combat | -11 -10 -10 -7 -5 -5 -5 -5 -5 -4 -4 -------- Run | Yrd Mat Sub Scr Fac Ext Cet Arc Hub Fac Upp Hostile Shots Fired 785 | . 1 43 . 37 53 29 8 375 232 7 Missed 251 | . 1 15 . 11 17 12 4 107 81 3 Hits 534 | . . 28 . 26 36 17 4 268 151 4 Melee 5 | . . . . 2 . . . . 3 . Projectile 529 | . . 28 . 24 36 17 4 268 148 4 AOE 1 | . . . . . . . . 1 . . Critical Strikes 36 | . . 3 . . 5 5 . 15 8 . Part Disruptions 7 | . . . . . . . . 7 . . Damage Taken 11869 | . . 677 . 505 722 408 129 6603 2721 104 Core 2294 | . . 149 . 15 67 24 . 870 1116 53 Absorbed by Shields 251 | . . . . . 113 85 . 53 . . Redirected to Shielding 3 | . . . . 3 . . . . . . Ignored by Resistances 15 | . . . . 15 . . . . . . Regen/Repaired (Parts) 76 | . . . . . . . . . 76 . Core Remaining (%) 47 | 100 . . 40 . . . . 2 . . Volleys Fired 456 | 8 7 60 7 66 68 26 61 131 17 5 Largest 3 | 2 2 2 1 2 2 2 2 3 3 1 Hottest 219 | 70 70 110 . 47 47 75 188 219 211 33 Shots Fired 651 | 16 14 109 7 82 101 32 63 188 34 5 Gun 309 | 16 14 78 . 15 10 5 62 71 33 5 Cannon 207 | . . 28 . 38 52 18 . 70 1 . Launcher 19 | . . 3 . 4 1 . . 11 . . Special 116 | . . . 7 25 38 9 1 36 . . Kinetic 332 | 8 7 54 . 53 62 5 48 67 23 5 Thermal 131 | 8 7 55 . . . . 14 37 10 . Explosive 16 | . . . . 4 1 . . 11 . . Electromagnetic 56 | . . . . . . 18 . 37 1 . Impact 111 | . . . 5 25 37 8 . 36 . . Robot Hit Streak 18 | 8 5 16 11 9 18 7 10 16 7 3 Robot Miss Streak 11 | 1 2 3 . 4 7 3 3 11 1 1 Penetration Max 2 | . . . . 1 . 1 2 2 . . Secondary Targets 3 | . . 1 . . . . . . 2 . Max Gunslinging Chain 1 | . . 1 . . . . . . 1 . Shots Hit Robots 453 | 13 8 68 3 54 73 23 46 134 26 5 Core Hits 344 | 5 4 27 . 39 40 12 17 183 14 3 Critical Kills 16 | . . 1 . 1 1 3 6 3 1 . Critical Parts Destroyed 39 | . . . . 5 5 1 15 12 1 . Critical Strikes 68 | 1 . 2 . 8 13 4 22 16 2 . Burn 1 | 1 . . . . . . . . . . Destroy 45 | . . 2 . 3 2 3 22 11 2 . Blast 9 | . . . . 2 7 . . . . . Corrupt 1 | . . . . . . . . 1 . . Smash 12 | . . . . 3 4 1 . 4 . . Melee Attacks 14 | . . . 11 . . . 2 . . 1 Impact 10 | . . . 10 . . . . . . . Slashing . | . . . . . . . . . . . Piercing 1 | . . . . . . . . . . 1 Sneak Attacks 4 | . . . 1 . . . 2 . . 1 Combat Hostiles . | . . . . . . . . . . . Follow-up Attacks . | . . . . . . . . . . . Damage Inflicted 18881 | 166 94 1703 . 2741 3327 987 585 8663 514 101 Guns 3621 | 166 94 942 . 83 54 39 585 1100 459 99 Cannons 4528 | . . 382 . 903 1262 327 . 1622 32 . Explosions 4944 | . . 379 . 370 141 138 . 3916 . . Melee 2 | . . . . . . . . . . 2 Ramming 79 | . . . . . 45 . . 11 23 . Kinetic 5040 | 90 60 989 . 986 1316 39 333 870 258 99 Thermal 2459 | 76 34 714 . . . 138 252 1044 201 . Explosive 4344 | . . . . 370 141 . . 3833 . . Electromagnetic 1250 | . . . . . . 327 . 891 32 . Impact 5707 | . . . . 1385 1825 483 . 2014 . . Slashing . | . . . . . . . . . . . Piercing 2 | . . . . . . . . . . 2 Highest Corruption 51 | . . . . . . . . 51 4 4 Average Corruption 14 | . . . . . . . . 18 4 4 Corruption Purged . | . . . . . . . . . . . Corruption Blocked . | . . . . . . . . . . . Effects 40 | . . . . . . . . 37 . 3 Message Errors 2 | . . . . . . . . 1 . 1 Matter Fused 14 | . . . . . . . . 13 . 1 Heat Flow Errors 2 | . . . . . . . . 2 . . Energy Discharges 5 | . . . . . . . . 5 . . Parts Fused 1 | . . . . . . . . . . 1 Data Loss (minor) 6 | . . . . . . . . 6 . . Misdirections 2 | . . . . . . . . 2 . . Weapon Failures 8 | . . . . . . . . 8 . . Overload Shots . | . . . . . . . . . . . Overflow Damage 1595 | . . . . 403 449 203 . 540 . . Projectiles 1576 | . . . . 403 449 203 . 521 . . Explosions 19 | . . . . . . . . 19 . . Melee . | . . . . . . . . . . . Knockbacks 48 | . . . . 13 13 . . 22 . . Impact 21 | . . . . 9 3 . . 9 . . Kinetic 25 | . . . . 3 10 . . 12 . . Secondary 2 | . . . . 1 . . . 1 . . Self-Inflicted Damage 328 | . . . . . . . . 318 10 . Shots 12 | . . . . . . . . 12 . . Rammed 7 | . . . . . . . . . 7 . Targets Rammed 11 | . . . . . 3 . . 1 7 . Kicked 4 | . . . . . 3 . . 1 . . Crushed . | . . . . . . . . . . . Highest Temperature 374 | 72 36 280 . 160 20 90 162 374 106 . Average Temperature 88 | 37 15 169 . 55 11 44 51 126 45 . Received Heat Transfer 2599 | . . 787 . 81 202 27 18 1080 395 9 Effects 6 | . . . . . . . . 6 . . Shutdowns 1 | . . . . . . . . 1 . . Energy Bleed 1 | . . . . . . . . 1 . . Interference 4 | . . . . . . . . 4 . . Siege Activations . | . . . . . . . . . . . Martial Activations . | . . . . . . . . . . . Shielding Activations . | . . . . . . . . . . . Robots Disrupted . | . . . . . . . . . . . Combat Hostiles . | . . . . . . . . . . . Robots Corrupted 17 | . . . . 4 3 2 . 8 . . Combat Hostiles 17 | . . . . 4 3 2 . 8 . . Parts Fried 24 | . . . . 1 5 5 . 13 . . Impact Corruptions 35 | . . . . 10 7 4 . 14 . . Robots Melted . | . . . . . . . . . . . Combat Hostiles . | . . . . . . . . . . . Parts Melted 5 | 3 . 1 . . 1 . . . . . Heat Transferred 3030 | 296 99 968 . . . 50 333 951 333 . Parts Sabotaged . | . . . . . . . . . . . Parts Stolen . | . . . . . . . . . . . Parts Stripped . | . . . . . . . . . . . Power Chain Reactions 2 | . . . . . . 1 . 1 . . Alert | -11 -10 -10 -7 -5 -5 -5 -5 -5 -4 -4 ------- Run | Yrd Mat Sub Scr Fac Ext Cet Arc Hub Fac Upp Maximum Alert Level 5 | . . . . 3 3 2 1 5 3 . Low Security (%) 56 | 100 100 . . 5 26 27 88 4 . . Level 1 15 | . . . . 15 27 50 11 1 . . Level 2 7 | . . . . 12 23 21 . 2 46 . Level 3 10 | . . . . 66 22 . . 2 53 . Level 4 5 | . . . . . . . . 46 . . Level 5 4 | . . . . . . . . 41 . . High Security . | . . . . . . . . . . . Max Security . | . . . . . . . . . . . Peak Influence 2007 | 10 30 . . 861 844 578 385 2007 769 . Initial 769 | . . . . . 371 451 216 . 769 . Average 336 | 2 5 . . 642 421 307 42 1452 705 . Influence Increases 7063 | 20 37 . . 1141 1283 747 306 3286 238 5 Destroy 0b10 Robot/C 2820 | . 20 . . 500 580 320 80 1260 60 . Destroy 0b10 Robot/NC 240 | 20 5 . . 45 25 10 40 90 . 5 Destroy Leader 460 | . 12 . . 90 36 20 . 282 20 . Allied During Kill 1836 | . . . . 53 472 350 120 841 . . Successful Hack 59 | . . . . 14 35 . . 6 4 . Select Force Hacks 100 | . . . . . . . . 100 . . Disable Machine 330 | . . . . 75 45 15 60 105 30 . Anti-Garrison Action 350 | . . . . 150 . . . 200 . . Destroy Structure 628 | . . . . 214 60 32 6 312 4 . Partial Spotted 30 | . . . . . . . . 15 15 . Lose Combat Pursuer 210 | . . . . . 30 . . 75 105 . Influence Decreases 7063 | 20 37 . . 382 1236 1011 848 1716 1141 672 Entered New Map 2118 | . . . . . 388 355 326 . 801 248 Time Decay 2773 | 20 37 . . 332 478 386 502 424 170 424 Lost Part 620 | . . . . 20 20 30 . 380 170 . Lost Ally 502 | . . . . 30 50 240 20 162 . . Purge Threat 1050 | . . . . . 300 . . 750 . . Squads Dispatched 38 | . 2 . . 9 . . . 23 4 . Investigation 6 | . 1 . . . . . . 5 . . Extermination 4 | . . . . 1 . . . 2 1 . Reinforcement 19 | . 1 . . 4 . . . 12 2 . Assault 6 | . . . . 3 . . . 2 1 . Garrison 3 | . . . . 1 . . . 2 . . Intercept . | . . . . . . . . . . . Searches Triggered . | . . . . . . . . . . . Construction Impeded 5 | . . . . 3 . . . 2 . . Haulers Reinforced 2 | . . . . . . . . 2 . . Active Scanning Responses . | . . . . . . . . . . . Cargo Convoy Interrupts . | . . . . . . . . . . . Stealth | -11 -10 -10 -7 -5 -5 -5 -5 -5 -4 -4 --------- Run | Yrd Mat Sub Scr Fac Ext Cet Arc Hub Fac Upp Distress Signals 10 | . 1 . . . 2 2 . 4 1 . Communications Jammed . | . . . . . . . . . . . Distress Signals . | . . . . . . . . . . . Times Spotted 244 | . 7 15 5 28 34 15 31 83 21 5 Peak Tracking Total 12 | . 4 2 3 5 6 8 2 12 11 4 Tactical Retreats 8 | . . . . . 2 . . 3 3 . Traps | -11 -10 -10 -7 -5 -5 -5 -5 -5 -4 -4 ------- Run | Yrd Mat Sub Scr Fac Ext Cet Arc Hub Fac Upp Traps Triggered 3 | . . 1 . . . . . 2 . . Indirectly . | . . . . . . . . . . . Trap Hack Attempts . | . . . . . . . . . . . Triggered . | . . . . . . . . . . . Disarmed . | . . . . . . . . . . . Reprogrammed . | . . . . . . . . . . . Reused 5 | . . . . . . . . . . 5 Traps Extracted . | . . . . . . . . . . . Installed 11 | . . 3 . . . . . . . 8 Triggered 5 | . . . . . . . . . . 5 Most Traps Carried 2 | . . . . . . . . . . 2 Machines | -11 -10 -10 -7 -5 -5 -5 -5 -5 -4 -4 ---------- Run | Yrd Mat Sub Scr Fac Ext Cet Arc Hub Fac Upp Machines Disabled 46 | . . 1 18 6 7 1 4 7 2 . Max in Single Turn 1 | . . 1 1 1 1 1 1 1 1 . Garrison Access 3 | . . . . 1 . . . 2 . . Network Hub 3 | . . . . . . . . 3 . . Machines Repaired . | . . . . . . . . . . . Machines Dismantled . | . . . . . . . . . . . Machines Sabotaged 2 | . . . . . . . . 2 . . Overloaded Fab Kills . | . . . . . . . . . . . Hacking | -11 -10 -10 -7 -5 -5 -5 -5 -5 -4 -4 --------- Run | Yrd Mat Sub Scr Fac Ext Cet Arc Hub Fac Upp Machines Accessed 24 | . 1 2 2 1 11 1 . 4 1 1 Terminals 17 | . 1 . . 1 11 1 . 3 . . Fabricators . | . . . . . . . . . . . Repair Stations 1 | . . . . . . . . . 1 . Recycling Units . | . . . . . . . . . . . Scanalyzers . | . . . . . . . . . . . Garrison Access 1 | . . . . . . . . 1 . . Total Hacks 67 | . 3 4 7 2 19 3 . 23 5 1 Successful 38 | . 2 4 7 1 7 . . 13 3 1 Failed 28 | . . . . 1 12 3 . 10 2 . Catastrophic 6 | . . . . . 3 1 . 2 . . Database Lockouts 1 | . 1 . . . . . . . . . Manual 17 | . 2 . . . 2 1 . 12 . . Terminals 48 | . 3 . . 2 19 3 . 21 . . Fabricators . | . . . . . . . . . . . Repair Stations 5 | . . . . . . . . . 5 . Recycling Units . | . . . . . . . . . . . Scanalyzers . | . . . . . . . . . . . Garrison Access 2 | . . . . . . . . 2 . . Terminal Hacks 30 | . 2 4 7 1 6 . . 9 . 1 Record 4 | . . 3 1 . . . . . . . Part Schematic 1 | . 1 . . . . . . . . . Robot Analysis 6 | . . . 6 . . . . . . . Open Door 4 | . . . . . 3 . . . . 1 Level Access Points 1 | . . . . . . . . 1 . . Terminal Index 1 | . . . . . . . . 1 . . Unreport Threat 7 | . . . . . 2 . . 5 . . Locate Traps 2 | . . . . 1 1 . . . . . Recall Reinforcements 1 | . . . . . . . . 1 . . Zone Layout 2 | . 1 . . . . . . 1 . . Proto ID Catalog 1 | . . 1 . . . . . . . . Fabricator Hacks . | . . . . . . . . . . . Repair Station Hacks 3 | . . . . . . . . . 3 . Scan Component 1 | . . . . . . . . . 1 . Repair 1 | . . . . . . . . . 1 . Refit 1 | . . . . . . . . . 1 . Recycling Unit Hacks . | . . . . . . . . . . . Scanalyzer . | . . . . . . . . . . . Garrison Access Hacks . | . . . . . . . . . . . Unauthorized Hacks 5 | . . . . . 1 . . 4 . . Terminals 4 | . . . . . 1 . . 3 . . Botnet 1 | . . . . . 1 . . . . . Sabotage 3 | . . . . . . . . 3 . . Fabricators . | . . . . . . . . . . . Repair Stations . | . . . . . . . . . . . Recycling Units . | . . . . . . . . . . . Scanalyzers . | . . . . . . . . . . . Garrison Access 1 | . . . . . . . . 1 . . Jam 1 | . . . . . . . . 1 . . Data Cores Recovered . | . . . . . . . . . . . Used . | . . . . . . . . . . . Hacking Detections 16 | . 1 . . 1 10 1 . 3 . . Full Trace Events . | . . . . . . . . . . . Feedback Events . | . . . . . . . . . . . Feedback Blocked . | . . . . . . . . . . . Robot Schematics Acquired . | . . . . . . . . . . . Robots Built . | . . . . . . . . . . . Authchips . | . . . . . . . . . . . Time . | . . . . . . . . . . . Total Robot Build Rating . | . . . . . . . . . . . Part Schematics Acquired 1 | . 1 . . . . . . . . . Parts Built . | . . . . . . . . . . . Authchips . | . . . . . . . . . . . Time . | . . . . . . . . . . . Total Part Build Rating . | . . . . . . . . . . . Part Studies Acquired . | . . . . . . . . . . . Parts Repaired 1 | . . . . . . . . . 1 . Time 38 | . . . . . . . . . 38 . Parts Recycled . | . . . . . . . . . . . Recycled Matter . | . . . . . . . . . . . Retrieved Matter . | . . . . . . . . . . . Retrieved Components . | . . . . . . . . . . . Parts Scanalyzed . | . . . . . . . . . . . Part Schematics Acquired . | . . . . . . . . . . . Parts Damaged . | . . . . . . . . . . . Bothacking | -11 -10 -10 -7 -5 -5 -5 -5 -5 -4 -4 ------------ Run | Yrd Mat Sub Scr Fac Ext Cet Arc Hub Fac Upp Used RIF Installer . | . . . . . . . . . . . Robots Hacked 4 | . . . 1 . 1 . 2 . . . Non-combat . | . . . . . . . . . . . Combat 4 | . . . 1 . 1 . 2 . . . Robot Hacks Applied 4 | . . . 1 . 1 . 2 . . . parse_system 4 | . . . 1 . 1 . 2 . . . Relay Couplers Released 6 | . . . . 4 . . . 2 . . Machine Destruction 6 | . . . . 4 . . . 2 . . Fabnet Peak Effective % . | . . . . . . . . . . . Robots Rewired 16 | . . . . . 16 . . . . . Allies Hacked . | . . . . . . . . . . . Hacks Repelled . | . . . . . . . . . . . Allies | -11 -10 -10 -7 -5 -5 -5 -5 -5 -4 -4 -------- Run | Yrd Mat Sub Scr Fac Ext Cet Arc Hub Fac Upp Total Allies 33 | . . . 1 1 24 6 1 . . . Largest Group 23 | . . . 1 1 23 22 16 14 . . Highest-Rated Group 1056 | . . . 61 61 776 1056 964 888 . . Highest-Rated Ally 159 | . . . 61 61 159 159 159 140 . . Total Orders 15 | . . . 2 3 2 4 4 . . . STAY 5 | . . . 1 . . 2 2 . . . FOLLOW 5 | . . . 1 . . 2 2 . . . EXPLORE 5 | . . . . 3 2 . . . . . Ally Attacks 423 | . . . 10 32 110 81 30 160 . . Total Damage 14852 | . . . 808 2248 2537 1883 749 6627 . . Kills 95 | . . . 4 15 18 11 5 42 . . Allies Corrupted 1 | . . . . . . . . 1 . . Allies Melted 5 | . . . 4 . . . . 1 . . Intel | -11 -10 -10 -7 -5 -5 -5 -5 -5 -4 -4 ------- Run | Yrd Mat Sub Scr Fac Ext Cet Arc Hub Fac Upp Active Infowar (turns) 24034 | 29 179 7001 5342 388 1222 913 5219 1012 317 2412 Sensors 3559 | . . . . . . 116 816 . 215 2412 Terrain 12551 | 29 179 7001 5342 . . . . . . . Machine Analysis 9071 | . . . . 388 1222 913 5219 1012 317 . Robot Analysis Total 6 | . . . 6 . . . . . . . Derelict Logs Recovered 9 | . . 3 5 . . . . . . 1 Drone Launches 6 | . . . . 4 2 . . . . . Drone Recoveries 4 | . . . . 3 1 . . . . . Exploration | -11 -10 -10 -7 -5 -5 -5 -5 -5 -4 -4 ------------- Run | Yrd Mat Sub Scr Fac Ext Cet Arc Hub Fac Upp Turns Passed 25697 | 126 179 7001 6378 779 1222 913 5219 1068 344 2468 Spaces Moved 10341 | 74 125 2403 3552 367 719 409 900 466 259 1067 Core 1493 | 6 . . . . . . 253 50 117 1067 Treads . | . . . . . . . . . . . Legs 8848 | 68 125 2403 3552 367 719 409 647 416 142 . Wheels . | . . . . . . . . . . . Hover . | . . . . . . . . . . . Flight . | . . . . . . . . . . . Fastest Speed 50 | 50 120 120 130 120 120 120 120 50 50 50 Average Speed 187 | 114 120 176 164 139 120 185 539 133 82 113 Slowest Speed 1500 | 120 120 210 200 200 190 190 1500 470 120 500 Overloaded Moves . | . . . . . . . . . . . Propulsion Burnouts . | . . . . . . . . . . . Robots Hopped . | . . . . . . . . . . . Potential Cave-ins 1 | . . . 1 . . . . . . . Cave-ins Triggered . | . . . . . . . . . . . Exploration Rate (%) 55 | 5 36 95 91 8 87 70 89 51 10 69 Regions Visited 10 Branch Regions 7 Pre-discovered Areas 3 | . . 2 1 . . . . . . . Known Exits Taken 1 | . . . . . . . . 1 . . Unknown Exits Taken 9 | 1 1 1 1 1 1 1 1 . 1 . Scrap Searched 18 | . . 8 5 . . . . . . 5 Spaces Dug 15 | . . 2 2 . 10 . . 1 . . Terrain Destroyed 283 | . . 68 4 21 24 14 1 149 2 . Melee . | . . . . . . . . . . . Projectile 57 | . . 3 4 20 16 . 1 11 2 . AOE 226 | . . 65 . 1 8 14 . 138 . . Terrain Rammed . | . . . . . . . . . . . Walls Destroyed . | . . . . . . . . . . . Machines Disabled . | . . . . . . . . . . . Actions | -11 -10 -10 -7 -5 -5 -5 -5 -5 -4 -4 --------- Run | Yrd Mat Sub Scr Fac Ext Cet Arc Hub Fac Upp Total 16134 | 96 147 5056 4092 554 1009 554 1225 718 353 2330 Wait 4612 | 4 . 2531 413 76 81 67 210 12 40 1178 Move 10332 | 73 124 2402 3551 366 718 408 899 465 259 1067 Hop . | . . . . . . . . . . . Pick Up 163 | 3 10 21 40 10 3 20 19 19 1 17 Fast Attach 87 | 7 1 3 5 15 4 3 5 15 13 16 Attach 53 | . . 3 8 3 1 3 3 24 3 5 Detach 15 | . . . 1 2 . 1 3 3 2 3 Swap 69 | . . 14 5 3 13 4 2 24 4 . Drop 202 | 1 5 19 51 13 11 22 21 21 8 30 Fire 456 | 8 7 60 7 66 68 26 61 131 17 5 Melee 14 | . . . 11 . . . 2 . . 1 Ram 6 | . . . . . . . . . 6 . Kick 4 | . . . . . 3 . . 1 . . Crush . | . . . . . . . . . . . Escape Stasis 3 | . . . . . . . . 3 . . Rewire 107 | . . . . . 107 . . . . . Trap 11 | . . 3 . . . . . . . 8 Miscellaneous . | . . . . . . . . . . . Route ------- -11/Scrapyard -10/Materials (discovered 2 exits: [*Min] / *Sub) -10/Subcaves (discovered 5 exits: [*Mat x2] / [Rec] / *Scr x2) -7/Scraptown (discovered 2 exits: *Fac x2) -5/Factory -5/Extension (discovered 2 exits: *Fac / *Cet) -5/Cetus (discovered 2 exits: *Fac / [*Arc]) -5/Archives (discovered 3 exits: *Fac / *Hub x2) -5/Hub_04(d) (discovered 4 exits: *Fac x4) -4/Factory -4/Upper Caves (discovered 1 exit: Upp) History --------- Turn | Location | Event 4 | -11/Scrapyard | Discovered new exit (range 15) 127 | -11/Scrapyard | Entered Materials 128 | -10/Materials | Met a group of wandering Federalists 193 | -10/Materials | Discovered new exit (range 13) 262 | -10/Materials | Central database locked down 293 | -10/Materials | Discovered new exit (range 10) 306 | -10/Materials | Entered Subcaves 307 | -10/Subcaves | Continued accompanying wandering Federalists (5) 307 | -10/Subcaves | Approached by a straggling Scientist 308 | -10/Subcaves | Build established: Mutant 417 | -10/Subcaves | Shifting Twisted Machinery released Piercing Trap 473 | -10/Subcaves | Disturbed a concealed Subdweller 620 | -10/Subcaves | Shifting Twisted Machinery released Sub. Monowheel 622 | -10/Subcaves | A swath of the cavern ceiling suddenly collapsed 698 | -10/Subcaves | Learned Materials stockpile data 719 | -10/Subcaves | Scientist uncovered a shortcut to Scraptown 816 | -10/Subcaves | Visited Clippyterm 822 | -10/Subcaves | Learned location of Extension (-5) 1869 | -10/Subcaves | Disturbed a concealed Subdweller 2009 | -10/Subcaves | Discovered new exit (range 8) 2036 | -10/Subcaves | Shifting Twisted Machinery released Scrap Shield 2106 | -10/Subcaves | A swath of the cavern ceiling suddenly collapsed 2572 | -10/Subcaves | Learned Materials garrison access intel 2674 | -10/Subcaves | Shifting Twisted Machinery released Shrapnel Trap 2701 | -10/Subcaves | Shifting Twisted Machinery released Riot Gun 2777 | -10/Subcaves | Visited 4L-MR0's lab 2799 | -10/Subcaves | Found Rainbow Chip 3191 | -10/Subcaves | Learned location of Zion (-6) 3191 | -10/Subcaves | Met a Zionite searching for "candidates" 3481 | -10/Subcaves | Discovered new exit (range 10) 3494 | -10/Subcaves | Learned Materials trap positions 3510 | -10/Subcaves | Build established: Scavenger-Mutant 3775 | -10/Subcaves | Core integrity fell below 50% 4028 | -10/Subcaves | Discovered new exit (range 8) 7307 | -10/Subcaves | Entered Scraptown 7587 | -7/Scraptown | Visited Cave Peace 7625 | -7/Scraptown | Visited Junk Repository 7688 | -7/Scraptown | Visited Fellowship of the Rings 7724 | -7/Scraptown | Visited Spacefarers 7742 | -7/Scraptown | Visited Cyclists 7766 | -7/Scraptown | Visited Assassins FH 8002 | -7/Scraptown | Scanned Subdweller tech in exchange for log data 8006 | -7/Scraptown | Learned Research stockpile data 8010 | -7/Scraptown | Learned Factory garrison access intel 8012 | -7/Scraptown | Learned Research interactive machine intel 8014 | -7/Scraptown | Learned location of Testing (-3) 8036 | -7/Scraptown | Discovered new exit (range 11) 8520 | -7/Scraptown | Visited UFD Registry 8520 | -7/Scraptown | Registered with UFD as "Scrapchassis" 8602 | -7/Scraptown | Entered Cyclist Reading Room 8956 | -7/Scraptown | Visited Scrapoid Research Area 8990 | -7/Scraptown | Visited DA-N13 Charitable Foundation 9008 | -7/Scraptown | Found DCF Scrap (31 items) 9048 | -7/Scraptown | Visited Observation Area 9080 | -7/Scraptown | Visited Junk Cannon Lab 9128 | -7/Scraptown | Visited Analyses Database 9188 | -7/Scraptown | Visited Botcube Research 9226 | -7/Scraptown | Visited Research Penetration Think Tank 9274 | -7/Scraptown | Visited Scrap Suit Storage 9306 | -7/Scraptown | Visited Infowarlord's Domain 9321 | -7/Scraptown | Found Exp. Sensor Array 9445 | -7/Scraptown | Delivered Scrap Shield to a Scientist 10007 | -7/Scraptown | Found Botcube 10185 | -7/Scraptown | Found Scrap Suit 10488 | -7/Scraptown | Visited Junk Repository 10630 | -7/Scraptown | Build established: Mutant 12118 | -7/Scraptown | Botcube activated 12138 | -7/Scraptown | Botcube completed mutation into treaded form, armed with 1 cannon, 1 launcher. 12144 | -7/Scraptown | Attached CPS modules to *Sublimator. 12341 | -7/Scraptown | Found Prototype Special Weapon 12346 | -7/Scraptown | Identified Junk Cannon 12475 | -7/Scraptown | Found Scrap Suit 12942 | -7/Scraptown | Build established: Derelict-Mutant 13123 | -7/Scraptown | Met Optimus 13123 | -7/Scraptown | Accepted into 0bPrime 13523 | -7/Scraptown | Civil war broke out across Scraptown 13523 | -7/Scraptown | Attached CPS modules to Optimus. 13531 | -7/Scraptown | Found Junk Cannon 13537 | -7/Scraptown | Found Junk Cannon 13612 | -7/Scraptown | Found Lrg. Botcube 13654 | -7/Scraptown | Discovered new exit (range 8) 13658 | -7/Scraptown | Found Lrg. Botcube 13685 | -7/Scraptown | Entered Factory 13685 | -5/Factory | Accompanied by 1 ally 13685 | -5/Factory | Evolved 10 slots: Power x1, Propulsion x3, Utility x5, Weapon x1 13686 | -5/Factory | Loaded intel: 4 garrison access locations 13701 | -5/Factory | Lost 13 allies 13985 | -5/Factory | First assault squad dispatched 14094 | -5/Factory | Discovered new exit (range 32) 14166 | -5/Factory | Build established: Scavenger-Tank 14338 | -5/Factory | Botcube activated 14352 | -5/Factory | Botcube completed mutation into wheeled form, armed with 2 guns. 14464 | -5/Factory | Entered Extension 14464 | -5/Extension | Accompanied by 1 ally 14566 | -5/Extension | Rescued a captive Derelict 14567 | -5/Extension | Rescued a captive Derelict 14627 | -5/Extension | Rescued a captive Derelict 14627 | -5/Extension | Rescued a captive Derelict 14690 | -5/Extension | Rescued a captive Derelict 14719 | -5/Extension | Build established: Scavenger-Gunner 15008 | -5/Extension | Spotted B-75 Beast 15021 | -5/Extension | Allies destroyed B-75 Beast 15030 | -5/Extension | Spotted B-75 Beast 15039 | -5/Extension | Allies destroyed B-75 Beast 15116 | -5/Extension | Rescued A7 15556 | -5/Extension | Rescued a captive Derelict 15559 | -5/Extension | Rescued a captive Derelict 15589 | -5/Extension | Discovered new exit (range 10) 15590 | -5/Extension | Discovered new exit (range 6) 15633 | -5/Extension | Build established: Commander-Tank 15686 | -5/Extension | Entered Cetus 15686 | -5/Cetus | Accompanied by 23 allies (A7) 15691 | -5/Cetus | Acquired a Cetus Manufacturing Module code from A7 15698 | -5/Cetus | Spotted Cetus Guard 15699 | -5/Cetus | Spotted Cetus Guard 15700 | -5/Cetus | Spotted Cetus Guard 15701 | -5/Cetus | Spotted Cetus Guard 15702 | -5/Cetus | Allies destroyed Cetus Guard 15708 | -5/Cetus | Destroyed Cetus Guard 15724 | -5/Cetus | Destroyed Cetus Guard 15728 | -5/Cetus | Destroyed Cetus Guard 15756 | -5/Cetus | Lost 10 allies 15805 | -5/Cetus | Started Cetus Manufacturing Module 15830 | -5/Cetus | Manufactured an Enhanced Grunt 15849 | -5/Cetus | Escorted A7 to Cetus Mainframe 15855 | -5/Cetus | Manufactured an Enhanced Grunt 15880 | -5/Cetus | Manufactured an Enhanced Grunt 15905 | -5/Cetus | Manufactured an Enhanced Grunt 15930 | -5/Cetus | Manufactured an Enhanced Grunt 16229 | -5/Cetus | Lrg. Botcube activated 16261 | -5/Cetus | Lrg. Botcube completed mutation into legged form, armed with 4 melee weapons. 16266 | -5/Cetus | Attached CPS modules to *Teddybear. 16398 | -5/Cetus | Discovered new exit (range 15) 16435 | -5/Cetus | Spotted Cetus Guard 16435 | -5/Cetus | Spotted Cetus Guard 16436 | -5/Cetus | Security sweep announced 16438 | -5/Cetus | Spotted Cetus Guard 16438 | -5/Cetus | Spotted Cetus Guard 16443 | -5/Cetus | Allies destroyed Cetus Guard 16445 | -5/Cetus | Destroyed Cetus Guard 16463 | -5/Cetus | Destroyed Cetus Guard 16469 | -5/Cetus | Destroyed Cetus Guard 16474 | -5/Cetus | Discovered new exit (range 15) 16491 | -5/Cetus | Met Revision 17 16492 | -5/Cetus | Lost 3 allies 16599 | -5/Cetus | Entered Archives 16599 | -5/Archives | Accompanied by 16 allies (A7) 16604 | -5/Archives | Received a hacking code to weaken MAIN.C 16715 | -5/Archives | Discovered new exit (range 15) 16783 | -5/Archives | Build established: Commander-Skirmisher 16795 | -5/Archives | Discovered new exit (range 16) 17007 | -5/Archives | Discovered new exit (range 16) 17445 | -5/Archives | Lrg. Botcube activated 17479 | -5/Archives | Lrg. Botcube completed mutation into treaded form, armed with 4 guns. 17519 | -5/Archives | Attached CPS modules to Large Mutated Botcube. 17928 | -5/Archives | Build established: Scavenger-Tank 21818 | -5/Archives | Entered Hub_04(d) 21818 | -5/Hub_04(d) | Accompanied by 14 allies 21843 | -5/Hub_04(d) | Discovered new exit (range 10) 21868 | -5/Hub_04(d) | Garrison activated, responded to threat 21890 | -5/Hub_04(d) | Lost 3 parts (3n) 21958 | -5/Hub_04(d) | Lost 6 parts (2n1u3w) 21966 | -5/Hub_04(d) | Lost 4 allies 22048 | -5/Hub_04(d) | Found Prototype Launcher 22049 | -5/Hub_04(d) | Identified Scatter Rocket Array 22058 | -5/Hub_04(d) | Lost 4 allies 22178 | -5/Hub_04(d) | Network Hub disabled 22178 | -5/Hub_04(d) | Spotted B-75 Beast 22188 | -5/Hub_04(d) | Spotted Lightning 22192 | -5/Hub_04(d) | Spotted Lightning 22193 | -5/Hub_04(d) | Spotted Lightning 22217 | -5/Hub_04(d) | Destroyed B-75 Beast 22219 | -5/Hub_04(d) | Destroyed Lightning 22222 | -5/Hub_04(d) | Destroyed Lightning 22230 | -5/Hub_04(d) | Destroyed Lightning 22237 | -5/Hub_04(d) | Lost 4 allies 22243 | -5/Hub_04(d) | System corruption reached 10% 22251 | -5/Hub_04(d) | Destroyed 10 combat bots 22252 | -5/Hub_04(d) | Lost 6 parts (4n1u1w) 22293 | -5/Hub_04(d) | Network Hub disabled 22548 | -5/Hub_04(d) | Core integrity fell below 50% 22639 | -5/Hub_04(d) | Identified exit to Factory 22639 | -5/Hub_04(d) | Network Hub disabled 22734 | -5/Hub_04(d) | Spotted Lightning 22739 | -5/Hub_04(d) | Destroyed Lightning 22742 | -5/Hub_04(d) | Spotted Lightning 22755 | -5/Hub_04(d) | Spotted Lightning 22777 | -5/Hub_04(d) | Destroyed Lightning 22784 | -5/Hub_04(d) | Found Prototype Energy Cannon 22789 | -5/Hub_04(d) | System corruption reached 30% 22838 | -5/Hub_04(d) | Core integrity fell below 20% 22862 | -5/Hub_04(d) | Lost 17 parts (2p5n5u5w) 22886 | -5/Hub_04(d) | Entered Factory 22886 | -4/Factory | Evolved 2 slots: Propulsion x1, Utility x1 22886 | -4/Factory | Identified EMDS 23027 | -4/Factory | Repaired Carbon-fiber Leg 23136 | -4/Factory | First assault squad dispatched 23186 | -4/Factory | Core integrity fell below 50% 23219 | -4/Factory | Core integrity fell below 20% 23225 | -4/Factory | Discovered new exit (range 9) 23230 | -4/Factory | Entered Upper Caves 23232 | -4/Upper Caves | UFD Scientist delivered a prototype 23233 | -4/Upper Caves | Found Prototype Protection 23233 | -4/Upper Caves | Identified Enh. Scrap Shield 23236 | -4/Upper Caves | Attached Rainbow Chip, gained temporary slots: Power, Propulsion, Utility, Weapon 23260 | -4/Upper Caves | Lost 17 parts (2p5n5u5w) 23368 | -4/Upper Caves | Build established: Mutant 24793 | -4/Upper Caves | Identified exit to Upper Caves 25693 | -4/Upper Caves | Spotted B-86 Titan 25698 | -4/Upper Caves | Destroyed by B-86 Titan with Railgun Last Messages --------------- 24825_ Dropped Adv. Hardlight Generator. 24838_ Acquired 39 matter. 24848_ Acquired Dirty Datajack. 24878_ Acquired 21 matter. 24921_ Acquired Dirty Datajack. 24925_ Acquired Enh. Scrap Shield. 24971_ Acquired Hvy. Battle Rifle. 25002_ Acquired 5 matter. 25012_ Acquired Adv. Hardlight Generator. 25014_ Dropped Adv. Hardlight Generator. 25489_ Dropped Imp. Light Armor Plating. 25490_ Dropped Lgt. Nuclear Core. 25494_ Dropped Dirty Datajack. 25495_ Dropped Autogun. 25497_ Acquired Lgt. Nuclear Core. 25689_ Dropped Lgt. Nuclear Core. 25691_ Dropped Hvy. Battle Rifle. 25691_ Dropped Imp. Plasma Cutter. 25695_ Penetrated by Slug. 25695_ Slug penetrates Wall. Map ----- +----------------------------------------------------+ | ?????????????????????????????????????????????????? | | ?????????????????????????????????????????????????? | | ?????????????????????????????????????????????????? | | ?????????????????????????????????????????????????? | | ??????????????????????????????????????#####??????? | | ????????????????????????????????????## #??????? | | ???????????????????????????????????## #??????? | | ?????????????????? ##??????????????# #??????? | | ???????????????? ??????????????# #??????? | | ?????????????? ????????????## #???????? | | ????????????? ???????????## #??????## | | ????????????? ???????????# ##????## | | ???????????? #??????????# ##???# | | ????????????# #???????#### ##### | | ?????????????# ##?????#*## ## | | ?>???????????# ####?##[| ##### ## | | ?????????????# BB ### ##???? ## | | ?????????????# BB ###???### | | ?????????????# ### ##????# | | ?????????????# #?# ##???### | | ?????????????# ##?# ##????? | | ?????????????# "# "#?## ###??? | | ?????????????## #######??### ##?? | | ??????????????## ##?????????## #?? | | ???????????????# ####???????####### #?? | | ???????????????## @ #???????####### #### | | ????????????????## ### #??????# | | ?????????????????# ??## #?????# ##### #### | | ?????????????????# ????# #????## #???# #??? | | ?????????????????# ?????# #????# #???# #??? | | ?????????????????# ?????# ##???# #??# #??? | | ?????????????????#?????? ##????# #?# #??? | | ???????????????????????? #?????# #?# #### | | ???????????????????????? ?????# # | | ???????????????????????? ?????## ?####### | | ???????????????????????? ?????### #?????? | | ???????????????????????? ????????# # ????? | | ???????????????????????? ???????? ???? | | ???????????????????????? #### ???????? % ???? | | ????????????????????????#????#?????????? # ??? | | ???????????????????????????????????????? " ?? | | ????????????????????????????????????????## #?# ## | | ?????????????????????????????????????????? ? | | ??????????????????????????????????????????#?# ?# | | ????????????????????????????????????????????# ?# | | ????????????????????????????????????????????# ?# | | ????????????????????????????????????????????# ?# | | ????????????????????????????????????????????# ## | | ????????????????????????????????????????????# #?# | | ????????????????????????????????????????????# #?? | +----------------------------------------------------+ Best States ------------- Heat Dissipation 78 Coolant Potential 100 Energy Generation 39 Energy Capacity 600 Matter Stores 550 Matter Capacity 550 Sight Range 16 Robot Scan Range 20 Terrain Scan Range 20 Terrain Scan Density 10 Corruption Containment 8 Armor Coverage 950 Resistance: TH 10 Core Shielding 20 Weapon Cycling 20 Phase Shifting 5 Evasion (%) 70 Particle Charging 25 Offensive Hacking 48 Defensive Hacking 12 Item Schematics ----------------- Hcp. Storage Unit | -10/Materials | Hacked Robot Schematics ------------------ None Fabricated ------------ Nothing Repaired ---------- Carbon-fiber Leg | 30% | -4/Factory Studied --------- None Alien Tech Used ----------------- None Achievements -------------- None Challenges ------------ None Game ------ Seed NodeZhirovNanoactuators Manual? 0 Play Time 02:41:11 Cumulative 1117.9 hours Start 2025.11.27 @ 03:57:45 End 2025.11.28 @ 05:35:08 Sessions 5 Manual Loads 0 Difficulty Rogue Special Mode None Game No. 393 Rogue 388 Adventurer 4 Explorer 1 Win Type - Total 23 Types 13/3/1/2/0/1/0/0/2/1 Lore% 97 Gallery% 95 Achievement% 81 Wizard Run 0 Options --------- Layout 0 ASCII 0 Keyboard 0 Movement Numpad Keybinds 0 Fullscreen 2 Font 18/SmallcapsGlow Map View 76x50 Zoom Use 0% Tactical HUD 1 Map Filters NONE Filters NONE Steam 1 RUN: 4c81cdd4-23a7-4857-86e2-3f245dbddac0